[Event "Titled Tuesday Blitz May 03 Early 2022"]
[White "Nguyen Hong Nhung"]
[Black "Sychev, Klementy"]
[WhiteFideId "12412201"]
[BlackFideId "4114060"]
[WhiteElo "1758"]
[BlackElo "2564"]
[Result "1-0"]
[Round "01"]
[TimeControl "180+1"]
[Date "2022.05.03"]
[WhiteClock "0:01:50"]
[BlackClock "0:01:43"]

1. e4 {[%clk 0:03:00]}  c6 {[%clk 0:02:59]} 2. d4 {[%clk 0:03:00]}  d5 {[%clk 0:02:59]} 3. f3 {[%clk 0:03:00]}  dxe4 {[%clk 0:02:58]} 4. fxe4 {[%clk 0:03:01]}  e5 {[%clk 0:02:58]} 5. Nf3 {[%clk 0:03:01]}  Be6 {[%clk 0:02:59]} 6. Nc3 {[%clk 0:02:57]}  exd4 {[%clk 0:02:56]} 7. Nxd4 {[%clk 0:02:57]}  Bc5 {[%clk 0:02:51]} 8. Be3 {[%clk 0:02:47]}  Qe7 {[%clk 0:02:37]} 9. Nxe6 {[%clk 0:02:19]}  Bxe3 {[%clk 0:02:15]} 10. Nxg7+ {[%clk 0:02:19]}  Kf8 {[%clk 0:02:14]} 11. Nf5 {[%clk 0:02:18]}  Qg5 {[%clk 0:02:04]} 12. Qd6+ {[%clk 0:02:12]}  Ke8 {[%clk 0:02:02]} 13. h4 {[%clk 0:01:51]}  Qf4 {[%clk 0:01:43]} 14. Ng7# {[%clk 0:01:50]} 1-0


[Site "https://www.chess.com"]

[Event "Titled Tuesday Blitz May 03 Early 2022"]
[White "Odegov, Artem"]
[Black "Cherniaiev, Tykhon"]
[WhiteFideId "34183644"]
[BlackFideId "14182360"]
[WhiteElo "2286"]
[BlackElo "2289"]
[Result "0-1"]
[Round "01"]
[TimeControl "180+1"]
[Date "2022.05.03"]
[WhiteClock "0:00:14"]
[BlackClock "0:00:36"]

1. d4 {[%clk 0:02:54]}  Nf6 {[%clk 0:02:56]} 2. c4 {[%clk 0:02:54]}  e6 {[%clk 0:02:55]} 3. Nf3 {[%clk 0:02:53]}  d5 {[%clk 0:02:55]} 4. Nc3 {[%clk 0:02:53]}  Be7 {[%clk 0:02:55]} 5. Bg5 {[%clk 0:02:52]}  O-O {[%clk 0:02:55]} 6. e3 {[%clk 0:02:53]}  dxc4 {[%clk 0:02:55]} 7. Bxc4 {[%clk 0:02:53]}  c5 {[%clk 0:02:55]} 8. O-O {[%clk 0:02:49]}  cxd4 {[%clk 0:02:55]} 9. Nxd4 {[%clk 0:02:49]}  Nc6 {[%clk 0:02:54]} 10. Nxc6 {[%clk 0:02:44]}  bxc6 {[%clk 0:02:55]} 11. Qf3 {[%clk 0:02:44]}  Bb7 {[%clk 0:02:53]} 12. Rad1 {[%clk 0:02:42]}  Qb6 {[%clk 0:02:52]} 13. b3 {[%clk 0:02:40]}  Qa5 {[%clk 0:02:48]} 14. Ne4 {[%clk 0:02:25]}  Nxe4 {[%clk 0:02:28]} 15. Bxe7 {[%clk 0:02:19]}  Nd2 {[%clk 0:02:27]} 16. Qg4 {[%clk 0:00:55]}  h5 {[%clk 0:02:21]} 17. Qd4 {[%clk 0:00:41]}  Nxf1 {[%clk 0:02:16]} 18. Bxf8 {[%clk 0:00:41]}  Rxf8 {[%clk 0:02:16]} 19. Kxf1 {[%clk 0:00:23]}  Qxa2 {[%clk 0:01:33]} 20. Ra1 {[%clk 0:00:23]}  Qc2 {[%clk 0:01:28]} 21. Bd3 {[%clk 0:00:23]}  c5 {[%clk 0:01:27]} 22. Bxc2 {[%clk 0:00:18]}  cxd4 {[%clk 0:01:27]} 23. Rxa7 {[%clk 0:00:18]}  Bd5 {[%clk 0:01:24]} 24. exd4 {[%clk 0:00:13]}  Rb8 {[%clk 0:01:21]} 25. Ra3 {[%clk 0:00:08]}  Rb4 {[%clk 0:01:22]} 26. Ra4 {[%clk 0:00:09]}  Rb6 {[%clk 0:01:17]} 27. b4 {[%clk 0:00:09]}  Bc6 {[%clk 0:01:11]} 28. Ra5 {[%clk 0:00:05]}  Rxb4 {[%clk 0:01:04]} 29. Rc5 {[%clk 0:00:06]}  Bb5+ {[%clk 0:00:50]} 30. Ke1 {[%clk 0:00:06]}  g6 {[%clk 0:00:50]} 31. d5 {[%clk 0:00:04]}  exd5 {[%clk 0:00:50]} 32. Rxd5 {[%clk 0:00:05]}  Bc6 {[%clk 0:00:50]} 33. Rd8+ {[%clk 0:00:05]}  Kg7 {[%clk 0:00:50]} 34. f3 {[%clk 0:00:05]}  Rb2 {[%clk 0:00:50]} 35. Kd2 {[%clk 0:00:04]}  h4 {[%clk 0:00:47]} 36. Kc3 {[%clk 0:00:04]}  Rb7 {[%clk 0:00:48]} 37. Rc8 {[%clk 0:00:04]}  Bd7 {[%clk 0:00:47]} 38. Rc4 {[%clk 0:00:04]}  h3 {[%clk 0:00:47]} 39. gxh3 {[%clk 0:00:05]}  Bxh3 {[%clk 0:00:47]} 40. Be4 {[%clk 0:00:06]}  Re7 {[%clk 0:00:47]} 41. Rb4 {[%clk 0:00:05]}  Bg2 {[%clk 0:00:47]} 42. Rb7 {[%clk 0:00:05]}  Re5 {[%clk 0:00:30]} 43. Kd4 {[%clk 0:00:05]}  Ra5 {[%clk 0:00:30]} 44. Bd5 {[%clk 0:00:05]}  Rxd5+ {[%clk 0:00:30]} 45. Kxd5 {[%clk 0:00:04]}  Bxf3+ {[%clk 0:00:30]} 46. Ke5 {[%clk 0:00:05]}  Bxb7 {[%clk 0:00:31]} 47. Kf4 {[%clk 0:00:06]}  f6 {[%clk 0:00:31]} 48. h4 {[%clk 0:00:06]}  Kh6 {[%clk 0:00:31]} 49. Kg4 {[%clk 0:00:06]}  Bc8+ {[%clk 0:00:31]} 50. Kf4 {[%clk 0:00:07]}  Kh5 {[%clk 0:00:32]} 51. Kg3 {[%clk 0:00:08]}  f5 {[%clk 0:00:32]} 52. Kf3 {[%clk 0:00:08]}  Kxh4 {[%clk 0:00:32]} 53. Kf4 {[%clk 0:00:09]}  g5+ {[%clk 0:00:33]} 54. Kf3 {[%clk 0:00:09]}  g4+ {[%clk 0:00:33]} 55. Kg2 {[%clk 0:00:10]}  f4 {[%clk 0:00:34]} 56. Kf2 {[%clk 0:00:11]}  g3+ {[%clk 0:00:34]} 57. Kg1 {[%clk 0:00:11]}  Bb7 {[%clk 0:00:34]} 58. Kf1 {[%clk 0:00:11]}  f3 {[%clk 0:00:35]} 59. Kg1 {[%clk 0:00:12]}  f2+ {[%clk 0:00:36]} 60. Kf1 {[%clk 0:00:13]}  Ba6+ {[%clk 0:00:35]} 61. Kg2 {[%clk 0:00:14]}  f1=Q# {[%clk 0:00:36]} 0-1


[Site "https://www.chess.com"]

[Event "Titled Tuesday Blitz May 03 Early 2022"]
[White "Oganian, Miran"]
[Black "Mikhalsky, Vladimir"]
[WhiteFideId "4122488"]
[BlackFideId "14144352"]
[WhiteElo "2357"]
[BlackElo "2301"]
[Result "1-0"]
[Round "01"]
[TimeControl "180+1"]
[Date "2022.05.03"]
[WhiteClock "0:02:01"]
[BlackClock "0:00:19"]

1. e4 {[%clk 0:02:59]}  g6 {[%clk 0:02:59]} 2. d4 {[%clk 0:02:59]}  Bg7 {[%clk 0:02:58]} 3. Nc3 {[%clk 0:02:59]}  d6 {[%clk 0:02:59]} 4. Bg5 {[%clk 0:02:58]}  a6 {[%clk 0:02:51]} 5. a4 {[%clk 0:02:58]}  b6 {[%clk 0:02:51]} 6. f4 {[%clk 0:02:58]}  Bb7 {[%clk 0:02:48]} 7. Nf3 {[%clk 0:02:58]}  Nc6 {[%clk 0:02:45]} 8. Bc4 {[%clk 0:02:57]}  Qd7 {[%clk 0:02:39]} 9. O-O {[%clk 0:02:54]}  h6 {[%clk 0:02:32]} 10. Bh4 {[%clk 0:02:53]}  e6 {[%clk 0:02:19]} 11. d5 {[%clk 0:02:51]}  exd5 {[%clk 0:01:47]} 12. Nxd5 {[%clk 0:02:51]}  Nce7 {[%clk 0:01:37]} 13. Re1 {[%clk 0:02:43]}  O-O-O {[%clk 0:01:28]} 14. Qd3 {[%clk 0:02:41]}  a5 {[%clk 0:01:19]} 15. Ba6 {[%clk 0:02:40]}  Kb8 {[%clk 0:01:07]} 16. Bxb7 {[%clk 0:02:38]}  Kxb7 {[%clk 0:01:07]} 17. Rab1 {[%clk 0:02:35]}  g5 {[%clk 0:00:45]} 18. Bf2 {[%clk 0:02:28]}  Nxd5 {[%clk 0:00:44]} 19. exd5 {[%clk 0:02:27]}  Qxa4 {[%clk 0:00:40]} 20. Nd4 {[%clk 0:02:14]}  Nf6 {[%clk 0:00:33]} 21. Nf5 {[%clk 0:02:06]}  Bf8 {[%clk 0:00:28]} 22. b4 {[%clk 0:02:06]}  Re8 {[%clk 0:00:19]} 23. Bd4 {[%clk 0:02:01]} 1-0


[Site "https://www.chess.com"]

[Event "Titled Tuesday Blitz May 03 Early 2022"]
[White "Ovezdurdyyeva, Jemal"]
[Black "Ezat, Mohamed"]
[WhiteFideId "14001888"]
[BlackFideId "10600906"]
[WhiteElo "1946"]
[BlackElo "2386"]
[Result "0-1"]
[Round "01"]
[TimeControl "180+1"]
[Date "2022.05.03"]
[WhiteClock "0:00:14"]
[BlackClock "0:00:13"]

1. e4 {[%clk 0:02:59]}  c6 {[%clk 0:02:55]} 2. d4 {[%clk 0:02:57]}  d5 {[%clk 0:02:49]} 3. Nd2 {[%clk 0:02:58]}  dxe4 {[%clk 0:02:42]} 4. Nxe4 {[%clk 0:02:58]}  Bf5 {[%clk 0:02:40]} 5. Ng3 {[%clk 0:02:58]}  Bg6 {[%clk 0:02:39]} 6. Nf3 {[%clk 0:02:54]}  e6 {[%clk 0:02:37]} 7. Ne5 {[%clk 0:02:53]}  Nd7 {[%clk 0:02:25]} 8. Nxg6 {[%clk 0:02:51]}  hxg6 {[%clk 0:02:25]} 9. Bd3 {[%clk 0:02:50]}  Ngf6 {[%clk 0:02:24]} 10. Bg5 {[%clk 0:02:49]}  Qb6 {[%clk 0:02:23]} 11. Ne2 {[%clk 0:02:24]}  Rh5 {[%clk 0:02:10]} 12. Bd2 {[%clk 0:02:02]}  O-O-O {[%clk 0:02:04]} 13. Qc1 {[%clk 0:01:27]}  e5 {[%clk 0:01:48]} 14. c3 {[%clk 0:01:20]}  exd4 {[%clk 0:01:46]} 15. cxd4 {[%clk 0:01:18]}  Bb4 {[%clk 0:01:42]} 16. a3 {[%clk 0:00:55]}  Bxd2+ {[%clk 0:01:40]} 17. Qxd2 {[%clk 0:00:56]}  Qc7 {[%clk 0:01:20]} 18. h3 {[%clk 0:00:51]}  Nb6 {[%clk 0:01:08]} 19. O-O-O {[%clk 0:00:40]}  Kb8 {[%clk 0:01:06]} 20. Kb1 {[%clk 0:00:39]}  g5 {[%clk 0:01:00]} 21. Ng3 {[%clk 0:00:36]}  Rh4 {[%clk 0:00:51]} 22. Qxg5 {[%clk 0:00:31]}  Rhxd4 {[%clk 0:00:50]} 23. Qxg7 {[%clk 0:00:31]}  Ne8 {[%clk 0:00:38]} 24. Qh7 {[%clk 0:00:26]}  a6 {[%clk 0:00:28]} 25. Bc2 {[%clk 0:00:25]}  Nc4 {[%clk 0:00:26]} 26. Rxd4 {[%clk 0:00:20]}  Rxd4 {[%clk 0:00:26]} 27. Qh8 {[%clk 0:00:21]}  Rd8 {[%clk 0:00:19]} 28. Qc3 {[%clk 0:00:21]}  Ned6 {[%clk 0:00:17]} 29. Bb3 {[%clk 0:00:20]}  Nb6 {[%clk 0:00:13]} 30. Rd1 {[%clk 0:00:18]}  Nb5 {[%clk 0:00:13]} 31. Rxd8+ {[%clk 0:00:18]}  Qxd8 {[%clk 0:00:14]} 32. Qf3 {[%clk 0:00:18]}  Ka7 {[%clk 0:00:14]} 33. Qxf7 {[%clk 0:00:18]}  Qd2 {[%clk 0:00:13]} 34. Ka2 {[%clk 0:00:18]}  Nc3+ {[%clk 0:00:12]} 35. Ka1 {[%clk 0:00:14]}  Qc1# {[%clk 0:00:13]} 0-1


[Site "https://www.chess.com"]

[Event "Titled Tuesday Blitz May 03 Early 2022"]
[White "Paravyan, David"]
[Black "Hamley, Ryan"]
[WhiteFideId "4194985"]
[BlackFideId "30959497"]
[WhiteElo "2569"]
[BlackElo "2497"]
[Result "1-0"]
[Round "01"]
[TimeControl "180+1"]
[Date "2022.05.03"]
[WhiteClock "0:02:08"]
[BlackClock "0:02:05"]

1. e4 {[%clk 0:03:00]}  e5 {[%clk 0:02:55]} 2. Nf3 {[%clk 0:03:01]}  Nc6 {[%clk 0:02:56]} 3. Nc3 {[%clk 0:03:01]}  Nf6 {[%clk 0:02:56]} 4. d4 {[%clk 0:03:01]}  exd4 {[%clk 0:02:55]} 5. Nxd4 {[%clk 0:03:02]}  Bb4 {[%clk 0:02:55]} 6. Nxc6 {[%clk 0:03:03]}  bxc6 {[%clk 0:02:56]} 7. Bd3 {[%clk 0:03:03]}  d5 {[%clk 0:02:56]} 8. exd5 {[%clk 0:03:04]}  cxd5 {[%clk 0:02:57]} 9. O-O {[%clk 0:03:04]}  O-O {[%clk 0:02:57]} 10. Bg5 {[%clk 0:03:05]}  c6 {[%clk 0:02:57]} 11. Qf3 {[%clk 0:03:05]}  Be7 {[%clk 0:02:56]} 12. h3 {[%clk 0:03:04]}  Rb8 {[%clk 0:02:54]} 13. b3 {[%clk 0:03:04]}  Qa5 {[%clk 0:02:51]} 14. Rfe1 {[%clk 0:02:58]}  Qd8 {[%clk 0:02:46]} 15. Rad1 {[%clk 0:02:49]}  Be6 {[%clk 0:02:45]} 16. Ne2 {[%clk 0:02:49]}  Re8 {[%clk 0:02:41]} 17. Nd4 {[%clk 0:02:48]}  Bd7 {[%clk 0:02:41]} 18. c4 {[%clk 0:02:42]}  c5 {[%clk 0:02:35]} 19. Nf5 {[%clk 0:02:38]}  Bxf5 {[%clk 0:02:35]} 20. Qxf5 {[%clk 0:02:39]}  g6 {[%clk 0:02:35]} 21. Qf3 {[%clk 0:02:36]}  Ne4 {[%clk 0:02:07]} 22. Bxe7 {[%clk 0:02:10]}  Qxe7 {[%clk 0:02:08]} 23. cxd5 {[%clk 0:02:10]}  Ng5 {[%clk 0:02:05]} 24. Qf4 {[%clk 0:02:08]} 1-0


[Site "https://www.chess.com"]

[Event "Titled Tuesday Blitz May 03 Early 2022"]
[White "Pein, Jonathan"]
[Black "Jakubiec, Artur"]
[WhiteFideId "417092"]
[BlackFideId "1103261"]
[WhiteElo "2140"]
[BlackElo "2473"]
[Result "1-0"]
[Round "01"]
[TimeControl "180+1"]
[Date "2022.05.03"]
[WhiteClock "0:01:48"]
[BlackClock "0:02:29"]

1. Nf3 {[%clk 0:02:53]}  d6 {[%clk 0:02:58]} 2. b3 {[%clk 0:02:53]}  e5 {[%clk 0:02:57]} 3. Bb2 {[%clk 0:02:54]}  f5 {[%clk 0:02:57]} 4. d4 {[%clk 0:02:54]}  e4 {[%clk 0:02:58]} 5. Nfd2 {[%clk 0:02:55]}  Nf6 {[%clk 0:02:58]} 6. c4 {[%clk 0:02:55]}  c6 {[%clk 0:02:58]} 7. e3 {[%clk 0:02:55]}  Be7 {[%clk 0:02:59]} 8. Nc3 {[%clk 0:02:56]}  O-O {[%clk 0:02:59]} 9. d5 {[%clk 0:02:56]}  c5 {[%clk 0:02:59]} 10. Be2 {[%clk 0:02:54]}  Nbd7 {[%clk 0:02:58]} 11. h3 {[%clk 0:02:53]}  Ne5 {[%clk 0:02:56]} 12. Qc2 {[%clk 0:02:54]}  a6 {[%clk 0:02:56]} 13. g4 {[%clk 0:02:53]}  Bd7 {[%clk 0:02:56]} 14. gxf5 {[%clk 0:02:49]}  Bxf5 {[%clk 0:02:55]} 15. Ncxe4 {[%clk 0:02:45]}  Nxe4 {[%clk 0:02:48]} 16. Nxe4 {[%clk 0:02:45]}  b5 {[%clk 0:02:48]} 17. f4 {[%clk 0:02:38]}  Nd7 {[%clk 0:02:45]} 18. Rg1 {[%clk 0:02:35]}  Nf6 {[%clk 0:02:45]} 19. Bd3 {[%clk 0:02:21]}  Bxe4 {[%clk 0:02:36]} 20. Bxe4 {[%clk 0:02:20]}  h6 {[%clk 0:02:34]} 21. Bh7+ {[%clk 0:02:18]}  Kh8 {[%clk 0:02:33]} 22. Qg6 {[%clk 0:02:18]}  Rg8 {[%clk 0:02:29]} 23. Bxg8 {[%clk 0:02:07]}  Qxg8 {[%clk 0:02:29]} 24. O-O-O {[%clk 0:01:57]}  Rb8 {[%clk 0:02:29]} 25. Rd2 {[%clk 0:01:49]}  bxc4 {[%clk 0:02:29]} 26. Rdg2 {[%clk 0:01:48]} 1-0


[Site "https://www.chess.com"]

[Event "Titled Tuesday Blitz May 03 Early 2022"]
[White "Petrovic, Aleksa"]
[Black "Seo, Jung Min"]
[WhiteFideId "967629"]
[BlackFideId "1734687"]
[WhiteElo "2444"]
[BlackElo "2764"]
[Result "0-1"]
[Round "01"]
[TimeControl "180+1"]
[Date "2022.05.03"]
[WhiteClock "0:00:03"]
[BlackClock "0:00:48"]

1. d4 {[%clk 0:03:00]}  Nf6 {[%clk 0:03:00]} 2. c4 {[%clk 0:03:00]}  c5 {[%clk 0:03:00]} 3. d5 {[%clk 0:02:59]}  g6 {[%clk 0:02:58]} 4. Nc3 {[%clk 0:02:58]}  Bg7 {[%clk 0:02:58]} 5. e4 {[%clk 0:02:59]}  O-O {[%clk 0:02:58]} 6. f3 {[%clk 0:02:55]}  d6 {[%clk 0:02:55]} 7. Nge2 {[%clk 0:02:55]}  e6 {[%clk 0:02:50]} 8. Ng3 {[%clk 0:02:54]}  Re8 {[%clk 0:02:50]} 9. Be2 {[%clk 0:02:54]}  Na6 {[%clk 0:02:48]} 10. O-O {[%clk 0:02:51]}  Rb8 {[%clk 0:02:47]} 11. Nh1 {[%clk 0:02:43]}  Nc7 {[%clk 0:02:45]} 12. a4 {[%clk 0:02:39]}  b6 {[%clk 0:02:38]} 13. Nf2 {[%clk 0:02:38]}  a6 {[%clk 0:02:37]} 14. dxe6 {[%clk 0:02:29]}  Nxe6 {[%clk 0:02:34]} 15. Nd3 {[%clk 0:02:22]}  Bd7 {[%clk 0:02:33]} 16. Nf4 {[%clk 0:02:21]}  Bc6 {[%clk 0:02:33]} 17. Nxe6 {[%clk 0:02:17]}  fxe6 {[%clk 0:02:30]} 18. Bf4 {[%clk 0:02:16]}  e5 {[%clk 0:02:29]} 19. Bg5 {[%clk 0:02:16]}  h6 {[%clk 0:02:22]} 20. Be3 {[%clk 0:02:14]}  Qe7 {[%clk 0:02:20]} 21. Qd2 {[%clk 0:02:13]}  Kh7 {[%clk 0:02:19]} 22. Rfd1 {[%clk 0:02:13]}  Red8 {[%clk 0:02:19]} 23. Nd5 {[%clk 0:02:09]}  Qf7 {[%clk 0:02:11]} 24. b4 {[%clk 0:02:07]}  cxb4 {[%clk 0:01:58]} 25. Bxb6 {[%clk 0:01:46]}  Nxd5 {[%clk 0:01:40]} 26. Bxd8 {[%clk 0:01:31]}  Nc3 {[%clk 0:01:39]} 27. Qxd6 {[%clk 0:01:24]}  Nxe2+ {[%clk 0:01:37]} 28. Kf2 {[%clk 0:01:20]}  Rxd8 {[%clk 0:01:35]} 29. Qxd8 {[%clk 0:01:16]}  Qxc4 {[%clk 0:01:24]} 30. Qd3 {[%clk 0:01:08]}  Qxd3 {[%clk 0:01:22]} 31. Rxd3 {[%clk 0:01:09]}  Nd4 {[%clk 0:01:22]} 32. a5 {[%clk 0:00:46]}  Bb5 {[%clk 0:01:17]} 33. Rdd1 {[%clk 0:00:37]}  b3 {[%clk 0:01:16]} 34. Rab1 {[%clk 0:00:32]}  Bf8 {[%clk 0:01:16]} 35. Rxd4 {[%clk 0:00:25]}  exd4 {[%clk 0:01:09]} 36. Rxb3 {[%clk 0:00:25]}  Bc5 {[%clk 0:01:06]} 37. Ke1 {[%clk 0:00:22]}  Kg7 {[%clk 0:01:06]} 38. Kd2 {[%clk 0:00:20]}  Kf6 {[%clk 0:01:06]} 39. f4 {[%clk 0:00:20]}  Ke6 {[%clk 0:01:00]} 40. g4 {[%clk 0:00:20]}  Bd6 {[%clk 0:01:00]} 41. e5 {[%clk 0:00:20]}  Bc7 {[%clk 0:00:59]} 42. Rh3 {[%clk 0:00:19]}  Bxa5+ {[%clk 0:00:58]} 43. Kc2 {[%clk 0:00:19]}  d3+ {[%clk 0:00:57]} 44. Rxd3 {[%clk 0:00:09]}  Bxd3+ {[%clk 0:00:57]} 45. Kxd3 {[%clk 0:00:10]}  Kd5 {[%clk 0:00:57]} 46. h4 {[%clk 0:00:07]}  Bd8 {[%clk 0:00:55]} 47. h5 {[%clk 0:00:04]}  g5 {[%clk 0:00:51]} 48. fxg5 {[%clk 0:00:04]}  Bxg5 {[%clk 0:00:51]} 49. Kc3 {[%clk 0:00:04]}  Kxe5 {[%clk 0:00:50]} 50. Kb4 {[%clk 0:00:04]}  Bd8 {[%clk 0:00:48]} 51. g5 {[%clk 0:00:03]}  hxg5 {[%clk 0:00:48]} 52. h6 {[%clk 0:00:02]}  g4 {[%clk 0:00:48]} 53. h7 {[%clk 0:00:03]}  Bf6 {[%clk 0:00:48]} 0-1


[Site "https://www.chess.com"]

[Event "Titled Tuesday Blitz May 03 Early 2022"]
[White "Piesik, Piotr"]
[Black "Stanisz, Patryk"]
[WhiteFideId "1136194"]
[BlackFideId "1123106"]
[WhiteElo "2190"]
[BlackElo "1833"]
[Result "1-0"]
[Round "01"]
[TimeControl "180+1"]
[Date "2022.05.03"]
[WhiteClock "0:01:51"]
[BlackClock "0:01:10"]

1. Nf3 {[%clk 0:02:54]}  Nf6 {[%clk 0:02:51]} 2. g3 {[%clk 0:02:55]}  d5 {[%clk 0:02:52]} 3. Bg2 {[%clk 0:02:55]}  c6 {[%clk 0:02:52]} 4. O-O {[%clk 0:02:55]}  Bf5 {[%clk 0:02:53]} 5. d3 {[%clk 0:02:55]}  h6 {[%clk 0:02:51]} 6. Nbd2 {[%clk 0:02:56]}  e6 {[%clk 0:02:50]} 7. Qe1 {[%clk 0:02:56]}  Bh7 {[%clk 0:02:47]} 8. e4 {[%clk 0:02:56]}  Be7 {[%clk 0:02:47]} 9. Qe2 {[%clk 0:02:56]}  Nbd7 {[%clk 0:02:46]} 10. b3 {[%clk 0:02:57]}  dxe4 {[%clk 0:02:45]} 11. dxe4 {[%clk 0:02:56]}  Qb6 {[%clk 0:02:42]} 12. Bb2 {[%clk 0:02:55]}  Nc5 {[%clk 0:02:23]} 13. Ne5 {[%clk 0:02:54]}  Na4 {[%clk 0:02:21]} 14. Ndc4 {[%clk 0:02:45]}  Qc5 {[%clk 0:02:08]} 15. bxa4 {[%clk 0:02:44]}  b5 {[%clk 0:02:09]} 16. axb5 {[%clk 0:02:41]}  cxb5 {[%clk 0:02:10]} 17. Na5 {[%clk 0:02:30]}  O-O {[%clk 0:02:06]} 18. Nb3 {[%clk 0:02:30]}  Qc7 {[%clk 0:02:04]} 19. f3 {[%clk 0:02:25]}  a5 {[%clk 0:02:00]} 20. a4 {[%clk 0:02:24]}  bxa4 {[%clk 0:01:59]} 21. Rxa4 {[%clk 0:02:25]}  Bd6 {[%clk 0:01:54]} 22. Nc4 {[%clk 0:02:21]}  Qc6 {[%clk 0:01:53]} 23. Rfa1 {[%clk 0:02:19]}  Bb4 {[%clk 0:01:52]} 24. Ncxa5 {[%clk 0:02:14]}  Qb6+ {[%clk 0:01:38]} 25. Kh1 {[%clk 0:02:13]}  Bxa5 {[%clk 0:01:36]} 26. Rxa5 {[%clk 0:02:13]}  Rac8 {[%clk 0:01:13]} 27. Ra6 {[%clk 0:01:56]}  Qb4 {[%clk 0:01:10]} 28. Ba3 {[%clk 0:01:51]} 1-0


[Site "https://www.chess.com"]

[Event "Titled Tuesday Blitz May 03 Early 2022"]
[White "Pinero Rodriguez, Carlos Jose"]
[Black "Halvax, Georg"]
[WhiteFideId "3901726"]
[BlackFideId "1619543"]
[WhiteElo "2053"]
[BlackElo "2403"]
[Result "0-1"]
[Round "01"]
[TimeControl "180+1"]
[Date "2022.05.03"]
[WhiteClock "0:00:09"]
[BlackClock "0:01:12"]

1. b3 {[%clk 0:02:59]}  d5 {[%clk 0:02:57]} 2. Bb2 {[%clk 0:03:00]}  Nf6 {[%clk 0:02:57]} 3. e3 {[%clk 0:02:58]}  e6 {[%clk 0:02:57]} 4. c4 {[%clk 0:02:56]}  Be7 {[%clk 0:02:56]} 5. Qc2 {[%clk 0:02:55]}  O-O {[%clk 0:02:56]} 6. Nf3 {[%clk 0:02:55]}  b6 {[%clk 0:02:55]} 7. Ng5 {[%clk 0:02:55]}  g6 {[%clk 0:02:53]} 8. h4 {[%clk 0:02:53]}  Bb7 {[%clk 0:02:42]} 9. Be2 {[%clk 0:02:43]}  Ne4 {[%clk 0:02:37]} 10. Nxe4 {[%clk 0:02:41]}  dxe4 {[%clk 0:02:37]} 11. h5 {[%clk 0:02:41]}  g5 {[%clk 0:02:33]} 12. Nc3 {[%clk 0:02:39]}  f5 {[%clk 0:02:30]} 13. O-O-O {[%clk 0:02:29]}  Bf6 {[%clk 0:02:29]} 14. d3 {[%clk 0:02:19]}  exd3 {[%clk 0:02:29]} 15. Bxd3 {[%clk 0:02:18]}  Qe7 {[%clk 0:02:29]} 16. f3 {[%clk 0:02:15]}  Nc6 {[%clk 0:02:25]} 17. a3 {[%clk 0:02:11]}  Ne5 {[%clk 0:02:24]} 18. e4 {[%clk 0:02:01]}  Nxd3+ {[%clk 0:02:21]} 19. Rxd3 {[%clk 0:01:58]}  fxe4 {[%clk 0:02:16]} 20. Nxe4 {[%clk 0:01:53]}  Bxe4 {[%clk 0:02:14]} 21. fxe4 {[%clk 0:01:52]}  Bxb2+ {[%clk 0:02:14]} 22. Qxb2 {[%clk 0:01:53]}  Rad8 {[%clk 0:02:10]} 23. Rxd8 {[%clk 0:01:20]}  Rxd8 {[%clk 0:02:11]} 24. Rf1 {[%clk 0:01:17]}  Qc5 {[%clk 0:01:47]} 25. Kb1 {[%clk 0:01:00]}  Qe3 {[%clk 0:01:41]} 26. Qf6 {[%clk 0:00:15]}  Qxe4+ {[%clk 0:01:37]} 27. Ka1 {[%clk 0:00:15]}  Qd4+ {[%clk 0:01:37]} 28. Qxd4 {[%clk 0:00:15]}  Rxd4 {[%clk 0:01:38]} 29. Rf2 {[%clk 0:00:15]}  Rh4 {[%clk 0:01:35]} 30. Re2 {[%clk 0:00:13]}  Kf7 {[%clk 0:01:34]} 31. Kb2 {[%clk 0:00:13]}  Rxh5 {[%clk 0:01:34]} 32. Rd2 {[%clk 0:00:13]}  Ke7 {[%clk 0:01:34]} 33. Kc3 {[%clk 0:00:13]}  Rh2 {[%clk 0:01:34]} 34. Kb4 {[%clk 0:00:11]}  h5 {[%clk 0:01:28]} 35. Kb5 {[%clk 0:00:11]}  h4 {[%clk 0:01:29]} 36. Kc6 {[%clk 0:00:12]}  g4 {[%clk 0:01:25]} 37. Kxc7 {[%clk 0:00:09]}  Kf6 {[%clk 0:01:17]} 38. Rf2+ {[%clk 0:00:07]}  Kg5 {[%clk 0:01:16]} 39. Re2 {[%clk 0:00:06]}  h3 {[%clk 0:01:14]} 40. Rxe6 {[%clk 0:00:06]}  hxg2 {[%clk 0:01:12]} 41. Re1 {[%clk 0:00:05]}  Rh1 {[%clk 0:01:12]} 42. Re5+ {[%clk 0:00:05]}  Kf4 {[%clk 0:01:12]} 43. Rd5 {[%clk 0:00:06]}  g1=Q {[%clk 0:01:12]} 44. Kc6 {[%clk 0:00:07]}  Rh6+ {[%clk 0:01:12]} 45. Kb7 {[%clk 0:00:08]}  Rh7+ {[%clk 0:01:13]} 46. Ka6 {[%clk 0:00:08]}  Qa1 {[%clk 0:01:13]} 47. Kb5 {[%clk 0:00:09]}  Qxa3 {[%clk 0:01:12]} 0-1


[Site "https://www.chess.com"]

[Event "Titled Tuesday Blitz May 03 Early 2022"]
[White "Popadic, Dragan"]
[Black "Perez Gormaz, Matias"]
[WhiteFideId "913650"]
[BlackFideId "3406342"]
[WhiteElo "2203"]
[BlackElo "2322"]
[Result "1/2-1/2"]
[Round "01"]
[TimeControl "180+1"]
[Date "2022.05.03"]
[WhiteClock "0:01:33"]
[BlackClock "0:00:39"]

1. e4 {[%clk 0:02:56]}  c5 {[%clk 0:02:48]} 2. Nc3 {[%clk 0:02:55]}  Nc6 {[%clk 0:02:47]} 3. f4 {[%clk 0:02:55]}  g6 {[%clk 0:02:46]} 4. Nf3 {[%clk 0:02:55]}  Bg7 {[%clk 0:02:46]} 5. Bc4 {[%clk 0:02:55]}  e6 {[%clk 0:02:47]} 6. f5 {[%clk 0:02:54]}  Nge7 {[%clk 0:02:47]} 7. fxe6 {[%clk 0:02:54]}  fxe6 {[%clk 0:02:44]} 8. d3 {[%clk 0:02:54]}  O-O {[%clk 0:02:43]} 9. O-O {[%clk 0:02:54]}  h6 {[%clk 0:02:31]} 10. Bb3 {[%clk 0:02:45]}  Kh7 {[%clk 0:02:23]} 11. Qe1 {[%clk 0:02:43]}  Nd4 {[%clk 0:02:17]} 12. Nxd4 {[%clk 0:02:41]}  cxd4 {[%clk 0:02:14]} 13. Ne2 {[%clk 0:02:40]}  Rxf1+ {[%clk 0:02:12]} 14. Qxf1 {[%clk 0:02:40]}  Nc6 {[%clk 0:02:12]} 15. Bd2 {[%clk 0:02:39]}  Qe7 {[%clk 0:02:07]} 16. Qf3 {[%clk 0:02:35]}  d6 {[%clk 0:01:56]} 17. Rf1 {[%clk 0:02:32]}  Bd7 {[%clk 0:01:57]} 18. Qf7 {[%clk 0:02:23]}  Rf8 {[%clk 0:01:54]} 19. Qxe7 {[%clk 0:02:22]}  Rxf1+ {[%clk 0:01:55]} 20. Kxf1 {[%clk 0:02:21]}  Nxe7 {[%clk 0:01:56]} 21. Nf4 {[%clk 0:02:08]}  e5 {[%clk 0:01:48]} 22. Nd5 {[%clk 0:02:07]}  Nc6 {[%clk 0:01:23]} 23. a3 {[%clk 0:01:50]}  g5 {[%clk 0:01:22]} 24. Nb4 {[%clk 0:01:46]}  Ne7 {[%clk 0:01:18]} 25. Nd5 {[%clk 0:01:40]}  Nc6 {[%clk 0:01:17]} 26. Nb4 {[%clk 0:01:39]}  Nd8 {[%clk 0:01:12]} 27. Nd5 {[%clk 0:01:33]}  Nc6 {[%clk 0:00:39]} 1/2-1/2


[Site "https://www.chess.com"]